bitfinex/quotes_BTCUSD_20220120
["timestamp","ask_amount","ask_price","bid_price","bid_amount"]
[1642707825890,0.00128016,42937.0,42926.0,7.2e-05]
[1642707826128,0.00128016,42937.0,42922.0,0.305772]
[1642707826129,0.01713016,42937.0,42922.0,0.305772]
[1642707826324,0.13573125,42937.0,42927.0,0.00017191]
[1642707826725,0.00055252,42934.0,42927.0,0.00017191]
[1642707827727,0.00128016,42937.0,42927.0,0.00017191]
[1642707827728,0.00128016,42937.0,42927.0,0.01017191]
[1642707827925,0.00055252,42933.0,42927.0,0.01]
[1642707828125,0.00055252,42933.0,42928.0,0.00015472]
[1642707828926,0.11861316,42936.0,42928.0,0.00015472]
[1642707829126,0.00106035,42933.0,42928.0,0.00097296]
[1642707829525,0.00106035,42933.0,42929.0,0.00013753]
[1642707830173,0.023,42933.0,42929.0,0.00013753]
[1642707830381,0.02406034,42933.0,42929.0,0.00013753]
[1642707830573,0.02406034,42933.0,42928.0,0.00097296]
[1642707830773,0.02406034,42933.0,42929.0,0.00013753]
[1642707831374,0.07537416,42937.0,42929.0,0.00013753]
[1642707831575,0.00107513,42933.0,42929.0,0.00013753]
[1642707831778,0.00107513,42933.0,42928.0,0.00095957]
[1642707831977,0.00107513,42933.0,42929.0,0.00013753]
[1642707832175,0.02307513,42933.0,42929.0,0.00013753]
[1642707832575,0.022,42933.0,42929.0,0.00013753]
[1642707832779,0.02307513,42933.0,42929.0,0.00013753]
[1642707832981,0.02307513,42933.0,42928.0,0.00095957]
[1642707833177,0.02307513,42933.0,42929.0,0.00013753]
[1642707833626,0.00107513,42933.0,42929.0,0.00013753]
[1642707834228,0.02207513,42933.0,42929.0,0.00013753]
[1642707834825,0.021,42933.0,42929.0,0.00013753]
[1642707835226,0.02207349,42933.0,42929.0,0.00013753]
[1642707835427,0.00107349,42933.0,42929.0,0.00013753]
[1642707836028,0.11861775,42936.0,42929.0,0.00013753]
[1642707836229,0.013,42933.0,42929.0,0.00013753]
[1642707836431,0.01407349,42933.0,42928.0,0.00096104]
[1642707836632,0.01407349,42933.0,42929.0,0.00013753]
[1642707837476,0.00107349,42933.0,42929.0,0.00013753]
[1642707838280,0.01807349,42933.0,42929.0,0.00013753]
[1642707838478,0.017,42933.0,42929.0,0.00013753]
[1642707838678,0.01807367,42933.0,42929.0,0.00013753]
[1642707838877,0.01807367,42933.0,42928.0,0.00096088]
[1642707839080,0.01807367,42933.0,42929.0,0.00013753]
[1642707839680,0.01713016,42937.0,42929.0,0.00013753]
[1642707839880,0.00107367,42933.0,42929.0,0.00013753]
[1642707840081,0.00107367,42933.0,42928.0,0.00096088]
[1642707840283,0.00107367,42933.0,42929.0,0.00013753]
[1642707840888,0.11861546,42934.0,42929.0,0.00013753]
[1642707841126,0.00107367,42933.0,42929.0,0.00013753]
[1642707842025,0.11861546,42934.0,42923.0,0.29186352]
[1642707842427,0.01414241,42933.0,42928.0,0.0009609]
[1642707843228,0.01306876,42933.0,42924.0,8.595e-05]
[1642707843431,6.876e-05,42933.0,42924.0,8.595e-05]
[1642707844228,0.01206876,42933.0,42924.0,0.00808595]
[1642707844627,0.01206876,42933.0,42925.0,6.876e-05]
[1642707844878,0.01206876,42933.0,42926.0,0.00050791]
[1642707845278,0.01206876,42933.0,42930.0,0.32163717]
[1642707845581,0.01206876,42933.0,42931.0,0.05]
[1642707846179,0.01206876,42933.0,42932.0,0.54457645]
[1642707846180,0.05306876,42933.0,42932.0,0.54457645]
[1642707846380,0.05306876,42933.0,42932.0,0.19457645]
[1642707847579,6.876e-05,42933.0,42932.0,0.19457645]
[1642707848179,0.01106876,42933.0,42932.0,0.45157645]
[1642707849024,0.01106876,42933.0,42932.0,0.007]
[1642707849422,6.876e-05,42933.0,42927.0,0.3445]
[1642707849820,0.69106511,42924.0,42918.0,0.03946728]
[1642707850021,0.66119056,42923.0,42922.0,0.00011015]
[1642707850222,0.69106511,42924.0,42922.0,0.22459675]
[1642707850223,1.35225567,42924.0,42922.0,0.22459675]
[1642707850423,0.66119056,42923.0,42922.0,0.22459675]
[1642707850623,0.66119056,42923.0,42921.0,0.05]
[1642707850824,0.66119056,42922.0,42921.0,0.05]
[1642707851024,0.66119056,42922.0,42920.0,0.058242]
[1642707851236,0.69106511,42924.0,42921.0,6.876e-05]
[1642707851626,0.98851897,42923.0,42921.0,6.876e-05]
[1642707852372,0.98851897,42923.0,42921.0,0.00906876]
[1642707852373,1.01551897,42923.0,42921.0,0.00906876]
[1642707852575,0.98851897,42922.0,42921.0,0.00906876]
[1642707853473,0.98851897,42922.0,42921.0,6.876e-05]
[1642707853878,0.98851897,42923.0,42921.0,6.876e-05]
[1642707854074,0.98851897,42922.0,42921.0,6.876e-05]
[1642707854274,0.03,42922.0,42921.0,0.01006876]
[1642707854974,0.03,42922.0,42921.0,0.98829976]
[1642707855375,0.03,42922.0,42921.0,1.14817251]
[1642707855576,0.69106511,42924.0,42921.0,1.13817251]
[1642707855776,0.69106511,42924.0,42921.0,1.13824451]
[1642707856228,0.69106511,42924.0,42921.0,1.14624451]
[1642707856229,0.71706511,42924.0,42921.0,1.14624451]
[1642707857532,0.69106511,42924.0,42921.0,0.97837176]
[1642707858430,0.72206511,42924.0,42921.0,0.98637176]
[1642707859035,0.72206511,42924.0,42922.0,0.33034624]
[1642707859233,0.72206511,42924.0,42923.0,0.778231]
[1642707860082,0.69106511,42924.0,42923.0,0.778231]
[1642707860279,0.72406511,42924.0,42923.0,0.784231]
[1642707860680,0.72406511,42924.0,42923.0,0.99361658]
[1642707861479,0.69106511,42924.0,42923.0,0.98761658]
[1642707862286,0.72506511,42924.0,42923.0,0.99361658]
[1642707863483,0.69106511,42924.0,42923.0,0.98761658]
[1642707864336,0.72706511,42924.0,42923.0,0.99461658]
[1642707865033,0.72706511,42924.0,42923.0,1.34451889]
[1642707865232,0.72706511,42924.0,42923.0,1.44451889]
[1642707865631,0.72706511,42924.0,42923.0,1.43751889]
[1642707865632,0.69106511,42924.0,42923.0,1.43751889]
[1642707866233,0.69106511,42924.0,42923.0,1.44951889]
[1642707867481,0.69106511,42924.0,42923.0,1.71177889]
[1642707867680,0.69106511,42924.0,42923.0,2.04977889]
[1642707868280,0.69106511,42924.0,42923.0,2.06277889]
[1642707869284,0.69106511,42924.0,42923.0,1.71277889]
[1642707870084,0.69106511,42924.0,42923.0,1.68391889]
[1642707870283,0.69106511,42924.0,42923.0,1.69691889]
[1642707871129,0.69099246,42924.0,42923.0,1.69691889]
[1642707871525,0.69099246,42924.0,42923.0,1.68391889]
[1642707872324,0.69099246,42924.0,42923.0,1.69691889]
[1642707873525,0.69099246,42924.0,42923.0,1.68391889]
[1642707874325,0.69099246,42924.0,42923.0,1.69691889]
[1642707875676,0.69099246,42924.0,42923.0,1.68391889]
[1642707876380,0.69099246,42924.0,42923.0,1.69691889]
[1642707877285,0.22517446,42924.0,42923.0,1.69691889]
[1642707877680,0.22517446,42924.0,42923.0,1.75514389]
[1642707877882,0.00107364,42930.0,42924.0,0.95]
[1642707878083,0.00012033,42932.0,42925.0,0.59930287]
[1642707878282,6.876e-05,42929.0,42927.0,0.058225]
[1642707878484,0.00107364,42930.0,42928.0,0.878231]
[1642707878731,0.00107364,42930.0,42928.0,0.928231]
[1642707878934,6.876e-05,42929.0,42928.0,1.22981216]
[1642707879130,6.876e-05,42929.0,42928.0,0.89626616]
[1642707880329,6.876e-05,42929.0,42928.0,0.90226616]
[1642707881532,6.876e-05,42929.0,42928.0,0.89626616]
[1642707881734,6.876e-05,42929.0,42928.0,0.62981216]
[1642707881932,6.876e-05,42929.0,42928.0,0.67981216]
[1642707882371,6.876e-05,42929.0,42928.0,0.68481216]
[1642707883573,6.876e-05,42929.0,42928.0,0.92981216]
[1642707884375,6.876e-05,42929.0,42928.0,0.93581216]
[1642707884978,6.876e-05,42929.0,42928.0,1.22860953]
[1642707885577,6.876e-05,42929.0,42928.0,0.92981216]
[1642707886425,6.876e-05,42929.0,42928.0,0.93581216]
[1642707887625,6.876e-05,42929.0,42928.0,0.92981216]
[1642707887829,6.876e-05,42929.0,42928.0,0.87981216]
[1642707888025,6.876e-05,42929.0,42928.0,0.478231]
[1642707888426,6.876e-05,42929.0,42928.0,0.483231]
[1642707888625,6.876e-05,42929.0,42928.0,0.833231]
[1642707889027,6.876e-05,42929.0,42928.0,1.00952403]
[1642707889627,6.876e-05,42929.0,42928.0,1.00452403]
[1642707890485,6.876e-05,42929.0,42928.0,1.00852403]
[1642707891581,6.876e-05,42929.0,42928.0,1.00452403]
[1642707892383,6.876e-05,42929.0,42928.0,1.00952403]
[1642707893731,6.876e-05,42929.0,42928.0,1.00452403]
[1642707894333,6.876e-05,42929.0,42928.0,1.00852403]
[1642707895536,6.876e-05,42929.0,42928.0,2.18328167]
[1642707895742,6.876e-05,42929.0,42928.0,1.94021779]
[1642707895936,6.876e-05,42929.0,42928.0,1.29510582]
[1642707896134,6.876e-05,42929.0,42928.0,1.15092403]
[1642707896336,6.876e-05,42929.0,42928.0,1.16092403]
[1642707896536,6.876e-05,42929.0,42928.0,0.884631]
[1642707897775,6.876e-05,42929.0,42928.0,0.874631]
[1642707898381,6.876e-05,42929.0,42928.0,0.834231]
[1642707899679,6.876e-05,42929.0,42928.0,0.828231]
[1642707900279,6.876e-05,42929.0,42928.0,0.778231]
[1642707900479,6.876e-05,42929.0,42928.0,0.784231]
[1642707901535,6.876e-05,42929.0,42928.0,0.434231]
[1642707901536,5.16e-06,42929.0,42928.0,0.434231]
[1642707901732,5.16e-06,42929.0,42928.0,0.478231]
[1642707902333,5.16e-06,42929.0,42928.0,0.428231]
[1642707902548,5.16e-06,42929.0,42928.0,0.73652287]
[1642707902732,5.16e-06,42929.0,42928.0,0.78652287]
[1642707903539,5.16e-06,42929.0,42928.0,0.483231]
[1642707904133,5.16e-06,42929.0,42928.0,0.583231]
[1642707904332,5.16e-06,42929.0,42928.0,0.586231]
[1642707904532,5.16e-06,42929.0,42928.0,0.79164361]
[1642707904982,5.16e-06,42929.0,42928.0,1.32309136]
[1642707905382,5.16e-06,42929.0,42928.0,1.01767875]
[1642707905587,5.16e-06,42929.0,42928.0,1.11767875]
[1642707905784,5.16e-06,42929.0,42928.0,1.10967875]
[1642707906087,5.16e-06,42929.0,42928.0,0.578231]
[1642707906481,5.16e-06,42929.0,42928.0,0.90134022]
[1642707906881,5.16e-06,42929.0,42928.0,1.47373822]
[1642707907083,5.16e-06,42929.0,42928.0,0.90134022]
[1642707907682,5.16e-06,42929.0,42928.0,0.89234022]
[1642707908083,5.16e-06,42929.0,42928.0,1.68143695]
[1642707908284,5.16e-06,42929.0,42928.0,0.89234022]
[1642707908486,5.16e-06,42929.0,42928.0,1.04562592]
[1642707908938,0.11859315,42939.0,42932.0,0.058218]
[1642707909142,0.11859315,42939.0,42933.0,0.39204123]
[1642707909340,0.00015472,42938.0,42937.0,0.32622538]
[1642707909640,0.1185925,42940.0,42937.0,0.72622538]
[1642707909838,0.1185925,42940.0,42938.0,0.29636025]
[1642707910040,1.95024676,42945.0,42940.0,0.7]
[1642707910244,0.4316722,42946.0,42941.0,0.0464]
[1642707910439,6.876e-05,42943.0,42941.0,0.0464]
[1642707910641,6.876e-05,42943.0,42942.0,1.128231]
[1642707910840,6.876e-05,42943.0,42942.0,1.224631]
[1642707911039,6.876e-05,42943.0,42942.0,1.83773052]
[1642707911246,6.876e-05,42943.0,42942.0,1.89594252]
[1642707912480,6.876e-05,42943.0,42942.0,1.90694252]
[1642707913680,6.876e-05,42943.0,42942.0,1.89594252]
[1642707914083,0.00013957,42948.0,42944.0,0.1164056]
[1642707914283,0.00013957,42948.0,42945.0,0.8810179]
[1642707914482,6.876e-05,42947.0,42945.0,0.9810179]
[1642707914685,6.876e-05,42947.0,42946.0,1.45469733]
[1642707914884,6.876e-05,42947.0,42946.0,1.87932833]
[1642707915083,6.876e-05,42947.0,42946.0,2.12213083]
[1642707915282,6.876e-05,42947.0,42946.0,1.8674335]
[1642707915484,6.876e-05,42947.0,42946.0,0.7674335]
[1642707916132,6.876e-05,42947.0,42946.0,0.424631]
[1642707916536,6.876e-05,42947.0,42946.0,0.0564]
[1642707916931,6.876e-05,42947.0,42946.0,0.01]
[1642707917132,6.876e-05,42947.0,42946.0,0.26]
[1642707917531,6.876e-05,42947.0,42946.0,0.31]
[1642707917733,6.876e-05,42947.0,42946.0,0.3]
[1642707917932,6.876e-05,42947.0,42946.0,0.25]
[1642707918332,6.876e-05,42947.0,42946.0,0.3]
[1642707918532,6.876e-05,42947.0,42946.0,0.303]
[1642707918732,6.876e-05,42947.0,42946.0,0.353]
[1642707919138,6.876e-05,42947.0,42946.0,0.653]
[1642707919334,6.876e-05,42947.0,42946.0,0.753]
[1642707919536,0.00948414,42947.0,42946.0,1.131231]
[1642707919735,0.00948414,42947.0,42946.0,1.128231]
[1642707920177,0.00948414,42947.0,42946.0,1.428231]
[1642707920379,0.00948414,42947.0,42946.0,1.139231]
[1642707920577,0.00948414,42947.0,42946.0,1.46706566]
[1642707920776,0.00948414,42947.0,42946.0,1.70397181]
[1642707921377,0.00013957,42948.0,42947.0,1.2790896]
[1642707921579,0.00013957,42948.0,42947.0,1.7037206]
[1642707921780,0.00013957,42948.0,42947.0,1.7537206]
[1642707922476,0.00013957,42948.0,42947.0,2.00213114]
[1642707923628,0.00013957,42948.0,42947.0,1.99213114]
[1642707923830,0.00013957,42948.0,42947.0,1.7537206]
[1642707924437,0.00013957,42948.0,42947.0,1.7637206]
[1642707924832,0.00013957,42948.0,42947.0,2.06014954]
[1642707925032,0.00013957,42948.0,42947.0,1.7637206]
[1642707925634,0.00013957,42948.0,42947.0,1.7537206]
[1642707925834,0.00013957,42948.0,42947.0,0.8037206]
[1642707926038,0.00013957,42948.0,42947.0,0.3790896]
[1642707926535,0.00013957,42948.0,42947.0,0.3870896]
[1642707926940,0.00013957,42948.0,42947.0,0.3370896]
[1642707927392,0.00013957,42948.0,42947.0,0.008]
[1642707927787,0.00013957,42948.0,42943.0,0.05]
[1642707927986,0.00013957,42948.0,42942.0,0.29448998]
[1642707928388,0.00013957,42948.0,42943.0,6.876e-05]
[1642707928785,0.001193,42947.0,42943.0,6.876e-05]
[1642707928986,0.0012966,42947.0,42943.0,6.876e-05]
[1642707929789,0.0001036,42947.0,42943.0,6.876e-05]
[1642707929987,0.0012966,42947.0,42943.0,6.876e-05]
[1642707930187,0.0012966,42947.0,42937.0,0.0001719]
[1642707930588,0.0792966,42947.0,42937.0,0.0001719]
[1642707930988,0.0781036,42947.0,42937.0,0.0001719]
[1642707931232,0.07929655,42947.0,42937.0,0.0001719]
[1642707931435,0.07929655,42947.0,42937.0,0.20924892]
[1642707931835,0.00129655,42947.0,42944.0,0.23289231]
[1642707932036,0.00129655,42947.0,42944.0,0.28289231]
[1642707932238,0.02753559,42950.0,42944.0,0.28296815]
[1642707932435,0.0411036,42947.0,42944.0,0.28596815]
[1642707933036,0.041,42947.0,42944.0,0.28596815]
[1642707934537,0.092,42947.0,42944.0,0.28396815]
[1642707934742,0.051,42947.0,42944.0,0.28396815]
[1642707935787,0.0001036,42949.0,42944.0,0.28296815]
[1642707935987,0.02763919,42950.0,42944.0,0.28296815]
[1642707936587,0.07863919,42950.0,42944.0,0.28396815]
[1642707937186,0.00119298,42949.0,42944.0,0.2848454]
[1642707937391,0.00129658,42949.0,42944.0,0.2848454]
[1642707937788,0.00129658,42949.0,42944.0,0.2838454]
[1642707938188,0.0001036,42949.0,42944.0,0.28296815]
[1642707938387,0.00119297,42949.0,42944.0,0.2838454]
[1642707938631,0.05919297,42949.0,42944.0,0.3430604]
[1642707938828,0.05919297,42949.0,42944.0,0.2930604]
[1642707939029,0.05929657,42949.0,42944.0,0.2930604]
[1642707939428,0.0581036,42949.0,42944.0,0.29218315]
[1642707939630,0.05929657,42949.0,42944.0,0.2930604]
[1642707939828,0.00129657,42949.0,42944.0,0.2920604]
[1642707940431,0.06729657,42949.0,42944.0,0.2920604]
[1642707940630,0.0661036,42949.0,42944.0,0.29118315]
[1642707940832,0.06729657,42949.0,42944.0,0.3420604]
[1642707941233,0.06729657,42949.0,42945.0,6.84]
[1642707941430,0.06729657,42949.0,42945.0,7.584e-05]
[1642707941831,0.0001036,42949.0,42945.0,7.584e-05]
[1642707942032,0.00129658,42949.0,42945.0,7.584e-05]
[1642707942504,0.06329658,42949.0,42945.0,7.584e-05]
[1642707943001,0.062,42949.0,42945.0,7.584e-05]
[1642707943201,0.062,42949.0,42948.0,0.94325683]
[1642707943202,0.06319298,42949.0,42948.0,0.94325683]
[1642707943402,0.06319298,42949.0,42948.0,0.99333267]
[1642707943801,0.00119298,42949.0,42948.0,0.99333267]
[1642707944202,0.00127085,42955.0,42948.0,0.29333267]
[1642707944404,0.00127085,42955.0,42954.0,0.20913179]
[1642707944602,0.00127085,42955.0,42954.0,0.20920763]
[1642707946533,0.05927085,42955.0,42954.0,0.20920763]
[1642707947535,0.38001048,42955.0,42954.0,7.584e-05]
[1642707947734,3.462e-05,42953.0,42945.0,0.3073]
[1642707947937,3.462e-05,42953.0,42946.0,7.583e-05]
[1642707948537,0.05203462,42953.0,42946.0,0.27028902]
[1642707948934,0.05213821,42953.0,42946.0,0.27028902]
[1642707949135,0.00119295,42952.0,42949.0,0.28542895]
[1642707949339,0.00129654,42952.0,42950.0,0.17759556]
[1642707949537,6.876e-05,42951.0,42950.0,0.17767139]
[1642707949738,6.876e-05,42951.0,42950.0,0.63587439]
[1642707949992,6.876e-05,42951.0,42950.0,0.57767139]
[1642707950599,0.06906876,42951.0,42950.0,0.17767139]
[1642707951000,0.06906876,42951.0,42940.0,0.3411]
[1642707951001,0.19272225,42943.0,42940.0,0.3411]
[1642707951198,0.19272225,42943.0,42942.0,0.1]
[1642707951394,0.19272225,42943.0,42942.0,0.478231]
[1642707951594,0.19272225,42943.0,42942.0,0.47831695]
[1642707952094,0.19272225,42943.0,42942.0,0.52831695]
[1642707952496,0.19272225,42943.0,42942.0,0.54031695]
[1642707954130,0.19272225,42943.0,42942.0,0.44031695]
[1642707954330,0.19272225,42943.0,42942.0,0.42831695]
[1642707954531,0.53405438,42943.0,42942.0,0.01008595]
[1642707954731,0.21872225,42943.0,42942.0,0.01008595]
[1642707955832,0.19272225,42943.0,42942.0,0.45008595]
[1642707956232,0.19272225,42943.0,42942.0,8.595e-05]
[1642707956632,0.22172225,42943.0,42942.0,0.00208595]
[1642707956831,0.21672225,42943.0,42942.0,0.00208595]
[1642707957684,0.18772225,42943.0,42942.0,0.60008595]
[1642707958085,0.18772225,42943.0,42942.0,0.70008595]
[1642707958285,0.18772225,42943.0,42942.0,1.07831695]
[1642707958286,0.17826004,42943.0,42942.0,1.07831695]
[1642707959085,0.17826004,42943.0,42942.0,0.97831695]
[1642707960186,0.17826004,42943.0,42942.0,1.07831695]
[1642707965589,0.17826004,42943.0,42942.0,0.97831695]
[1642707966088,0.17826004,42943.0,42942.0,0.37831695]
[1642707966690,0.17826004,42943.0,42942.0,8.595e-05]
[1642707967090,0.17826004,42943.0,42941.0,0.00010314]
[1642707967289,0.17826004,42943.0,42940.0,0.00086987]
[1642707967489,0.17826004,42943.0,42941.0,0.00010314]
[1642707967693,0.01585,42942.0,42941.0,0.00010314]
[1642707968491,0.01585,42942.0,42939.0,0.0008699]
[1642707968737,0.01585,42942.0,42940.0,0.00012033]
[1642707968738,0.008,42942.0,42940.0,0.00012033]
[1642707968942,0.01585,42941.0,42940.0,0.00012033]
[1642707969738,0.01585,42941.0,42939.0,0.00086991]
[1642707969941,0.01585,42941.0,42940.0,0.37835133]
[1642707971143,0.01585,42941.0,42940.0,0.42835133]
[1642707972980,0.01585,42941.0,42940.0,0.75065139]
[1642707973382,0.17826004,42943.0,42940.0,0.75065139]
[1642707973580,0.17826004,42943.0,42940.0,0.85065139]
[1642707973781,0.17826004,42943.0,42941.0,0.00010314]
[1642707973981,0.17826004,42943.0,42942.0,0.428231]
[1642707974185,0.17826004,42943.0,42942.0,0.74752557]
[1642707974382,0.17826004,42943.0,42942.0,0.74761152]
[1642707976629,0.18026004,42943.0,42942.0,0.74761152]
[1642707977431,0.18026004,42943.0,42942.0,1.59761152]
[1642707977630,0.18026004,42943.0,42942.0,1.27831695]
[1642707977831,0.17826004,42943.0,42942.0,1.59394802]
[1642707979631,0.17826004,42943.0,42942.0,1.64034802]
[1642707980984,0.00129653,42948.0,42942.0,1.74034802]
[1642707981184,0.00129653,42948.0,42944.0,0.058202]
[1642707981386,0.01595359,42949.0,42945.0,0.7121852]
[1642707981584,0.01595359,42949.0,42947.0,1.06808101]
[1642707981585,0.00129653,42948.0,42947.0,1.06808101]
[1642707981785,0.00129653,42948.0,42947.0,1.6763791]
[1642707981989,0.00119294,42948.0,42947.0,1.7263791]
[1642707982183,0.01704294,42948.0,42947.0,2.04185733]
[1642707982584,0.04385,42948.0,42947.0,2.05185733]
[1642707983934,0.01585,42948.0,42947.0,1.87377632]
[1642707984430,0.01585,42948.0,42947.0,1.92017632]
[1642707984640,0.01885,42948.0,42947.0,1.93517632]
[1642707985930,0.01585,42948.0,42947.0,1.92017632]
[1642707986330,0.01585,42948.0,42947.0,2.02017632]
[1642707986535,0.00119297,42950.0,42947.0,2.02017632]
[1642707986733,0.00010359,42949.0,42948.0,0.78055523]
[1642707986932,0.00010359,42949.0,42948.0,0.82695523]
[1642707987136,0.00119297,42950.0,42948.0,0.92695523]
[1642707987388,0.00010359,42952.0,42949.0,1.34045514]
[1642707987590,3.462e-05,42953.0,42950.0,1.274631]
[1642707987591,0.00126172,42951.0,42950.0,1.274631]
[1642707988086,0.00126172,42951.0,42950.0,1.374631]
[1642707988486,6.876e-05,42951.0,42950.0,1.432823]
[1642707988688,6.876e-05,42951.0,42950.0,1.469823]
[1642707989886,6.876e-05,42951.0,42950.0,1.386423]
[1642707990490,6.876e-05,42951.0,42950.0,1.432823]
[1642707990690,6.876e-05,42951.0,42950.0,1.468823]
[1642707992030,6.876e-05,42951.0,42950.0,1.432823]
[1642707992631,6.876e-05,42951.0,42950.0,1.468823]
[1642707992832,6.876e-05,42951.0,42950.0,1.410631]
[1642707993331,6.876e-05,42951.0,42950.0,0.460631]
[1642707993532,0.01591876,42951.0,42950.0,0.414231]
[1642707993732,0.01591876,42951.0,42950.0,0.036]
[1642707993931,0.01591876,42951.0,42947.0,0.23006709]
[1642707994131,0.01591876,42951.0,42948.0,0.378231]
[1642707994533,0.01585,42949.0,42948.0,0.378231]
[1642707994739,0.00119295,42952.0,42948.0,0.378231]
[1642707994983,0.0001036,42951.0,42947.0,0.28826915]
[1642707995286,0.0001036,42951.0,42948.0,0.378231]
[1642707995682,0.01585,42952.0,42948.0,0.378231]
[1642707995885,0.0001036,42951.0,42948.0,0.378231]
[1642707996082,0.01704295,42952.0,42948.0,0.378231]
[1642707996887,0.01585,42952.0,42948.0,0.378231]
[1642707997085,0.01704294,42952.0,42948.0,0.378231]
[1642707997986,0.01704294,42952.0,42947.0,0.28006709]
[1642707998185,0.01585,42952.0,42948.0,0.378231]
[1642707998387,0.01704294,42952.0,42948.0,0.378231]
[1642707999239,0.01704294,42952.0,42948.0,0.43643086]
[1642707999438,0.01585,42952.0,42948.0,0.43643086]
[1642707999637,0.01704294,42952.0,42948.0,0.43643086]
[1642708000037,0.01704294,42952.0,42948.0,0.378231]
[1642708000238,0.01585,42951.0,42948.0,0.378231]
[1642708000638,0.0159536,42951.0,42948.0,0.378231]
[1642708001236,0.01585,42949.0,42948.0,0.378231]
[1642708002696,0.02285,42949.0,42943.0,0.28786876]
[1642708002893,0.02285,42949.0,42944.0,0.378231]
[1642708003092,0.02285,42949.0,42944.0,0.37835133]
[1642708003293,0.02285,42949.0,42945.0,0.00010314]
[1642708003692,0.0229536,42949.0,42945.0,0.00010314]
[1642708003895,0.0159536,42949.0,42945.0,0.00010314]
[1642708004294,0.01704298,42949.0,42945.0,0.00010314]
[1642708004793,0.22860633,42949.0,42945.0,0.00010314]
[1642708005197,0.22860633,42949.0,42944.0,0.00012033]
[1642708005393,0.22860633,42949.0,42943.0,0.00013752]
[1642708005394,0.22741335,42949.0,42943.0,0.00013752]
[1642708005594,0.22870993,42949.0,42943.0,0.00013752]
[1642708005792,0.22870993,42949.0,42942.0,0.00086978]
[1642708005993,0.22770993,42949.0,42943.0,0.00013752]
[1642708006233,0.22760633,42949.0,42943.0,0.00013752]
[1642708006731,0.00119299,42948.0,42943.0,0.00013752]
[1642708007736,0.23651695,42949.0,42943.0,0.00013752]
[1642708007930,0.00119299,42948.0,42943.0,0.00013752]
[1642708008132,0.00119299,42948.0,42942.0,0.0008698]
[1642708008337,0.030354,42948.0,42943.0,0.00013752]
[1642708008536,0.00127502,42946.0,42943.0,0.00013752]
[1642708008733,0.00126658,42944.0,42943.0,0.00013752]
[1642708009335,0.00126658,42944.0,42942.0,0.00086981]
[1642708009634,0.01711658,42944.0,42943.0,0.00013752]
[1642708010086,0.06711658,42944.0,42943.0,0.00013752]
[1642708010489,0.06711658,42944.0,42943.0,1.50013752]
[1642708010688,0.08211658,42944.0,42943.0,1.5]
[1642708010886,0.08211658,42944.0,42943.0,1.50013752]
[1642708011588,0.39421238,42944.0,42943.0,1.50013752]
[1642708012187,0.08211658,42944.0,42943.0,1.50013752]
[1642708012588,0.01711658,42944.0,42943.0,1.50013752]
[1642708012790,0.08211658,42944.0,42943.0,1.50013752]
[1642708014034,0.06711658,42944.0,42943.0,1.50013752]
[1642708014436,0.06585,42944.0,42943.0,1.50013752]
[1642708014636,0.01585,42944.0,42943.0,1.50013752]
[1642708014835,0.03885,42944.0,42943.0,1.50013752]
[1642708015237,0.03885,42944.0,42943.0,1.87836852]
[1642708016035,0.01585,42944.0,42943.0,1.87836852]
[1642708016837,0.03285,42944.0,42943.0,1.88136852]
[1642708017986,0.01585,42944.0,42943.0,1.50013752]
[1642708018782,0.03385,42944.0,42943.0,1.50213752]
[1642708019184,0.03378928,42944.0,42943.0,1.50213752]
[1642708019885,0.01578928,42944.0,42943.0,1.50013752]
[1642708020284,0.01578928,42944.0,42943.0,1.87836852]
[1642708020683,0.04614325,42948.0,42943.0,1.93536852]
[1642708020887,0.013,42944.0,42943.0,1.93413021]
[1642708021135,0.013,42944.0,42943.0,2.31222369]
[1642708021936,0.01698224,42948.0,42943.0,2.30522369]
[1642708022141,0.01578928,42948.0,42945.0,0.2402359]
[1642708022338,0.01698224,42948.0,42945.0,0.2902359]
[1642708022539,0.01698224,42948.0,42946.0,0.378231]
[1642708022737,0.02098224,42948.0,42946.0,0.363231]
[1642708022938,0.02098224,42948.0,42947.0,0.45006876]
[1642708023144,0.02098224,42948.0,42947.0,0.60006876]
[1642708023338,0.01978928,42948.0,42947.0,0.15006876]
[1642708023939,0.01578928,42948.0,42947.0,0.15006876]
[1642708024339,0.01578928,42948.0,42947.0,0.05006876]
[1642708024539,0.01578928,42948.0,42947.0,6.876e-05]
[1642708024743,0.01578928,42948.0,42947.0,0.00406876]
[1642708024744,0.07277136,42948.0,42947.0,0.00406876]
[1642708024995,0.07277136,42948.0,42947.0,0.004]
[1642708024996,0.07399184,42948.0,42947.0,0.004]
[1642708025195,0.3029852,42948.0,42947.0,0.00406876]
[1642708025395,0.64412929,42948.0,42947.0,0.00406876]
[1642708025595,0.74412929,42948.0,42947.0,0.00406876]
[1642708025800,1.07655618,42948.0,42947.0,0.00406876]
[1642708025996,1.04655618,42948.0,42947.0,6.876e-05]
[1642708026201,0.76412929,42948.0,42947.0,6.876e-05]
[1642708026816,0.77512929,42948.0,42947.0,6.876e-05]
[1642708027999,0.76412929,42948.0,42947.0,6.876e-05]
[1642708028197,0.97830755,42948.0,42943.0,0.00013752]
[1642708028401,0.058232,42946.0,42943.0,0.00013752]
[1642708028639,0.058233,42944.0,42942.0,0.00086978]
[1642708028835,0.06243893,42943.0,42942.0,0.00086978]
[1642708029236,0.06243893,42943.0,42942.0,0.00102449]
[1642708029433,0.06243893,42943.0,42942.0,0.00015471]
[1642708029833,0.058237,42942.0,42940.0,0.00086987]
[1642708030037,0.02140259,42941.0,42940.0,0.00086987]
[1642708030436,0.02140259,42941.0,42940.0,0.00105896]
[1642708030636,0.02140259,42941.0,42940.0,0.00018909]
[1642708030837,0.03340259,42941.0,42940.0,0.00018909]
[1642708031040,0.058234,42940.0,42938.0,0.00086993]
[1642708031236,0.058234,42940.0,42939.0,0.00020628]
[1642708031435,0.123014,42940.0,42939.0,0.00020628]
[1642708032236,0.123014,42940.0,42937.0,0.00086996]
[1642708032484,0.123014,42940.0,42938.0,0.00022347]
[1642708032891,0.15080328,42940.0,42938.0,0.00022347]
[1642708033288,0.18823357,42939.0,42938.0,0.00022347]
[1642708033492,0.20301357,42939.0,42937.0,0.00086998]
[1642708033693,0.18823357,42939.0,42938.0,0.00022347]
[1642708033887,0.20301357,42939.0,42938.0,0.00022347]
[1642708034691,0.20301357,42939.0,42936.0,0.00086999]
[1642708034692,0.058241,42938.0,42936.0,0.00086999]
[1642708034894,0.37812705,42937.0,42936.0,0.00086999]
[1642708035290,0.37812705,42937.0,42936.0,0.00112785]
[1642708035492,0.37812705,42937.0,42936.0,0.00025786]
[1642708035892,0.108243,42936.0,42934.0,0.00087006]
[1642708036144,0.108243,42936.0,42935.0,0.00027505]
[1642708036349,0.123023,42936.0,42935.0,0.00027505]
[1642708036744,0.135023,42936.0,42935.0,0.00027505]
[1642708036951,0.01478,42935.0,42933.0,0.00065652]
[1642708037147,0.03631913,42935.0,42934.0,0.00029224]
[1642708037346,1.34630385,42935.0,42934.0,0.00029224]
[1642708037548,1.13654075,42934.0,42933.0,0.00065652]
[1642708037750,0.64964553,42933.0,42928.0,7.2e-05]